bitfinex-derivatives/quotes_ETHF0:USTF0_20260207
["timestamp","ask_amount","ask_price","bid_price","bid_amount"]
[1770444111327,6.75487598,2083.2,2081.8,7.93812947]
[1770444112025,6.74260129,2083.4,2081.9,7.93812947]
[1770444112928,6.74260129,2083.4,2082.0,7.93812947]
[1770444113817,6.77386299,2083.6,2082.1,7.93812947]
[1770444114727,6.77386299,2083.6,2082.2,7.93812947]
[1770444116231,0.24569917,2083.7,2082.2,7.93812947]
[1770444116232,7.00991682,2083.7,2082.2,7.93812947]
[1770444121429,6.76979682,2083.7,2082.2,7.93812947]
[1770444121732,6.76979682,2083.7,2082.3,7.93812947]
[1770444123231,6.76979682,2083.7,2082.5,7.93812947]
[1770444130528,0.00557917,2083.7,2082.5,8.17837947]
[1770444130734,0.00557917,2083.7,2082.6,7.78148058]
[1770444132238,0.00557917,2083.7,2082.6,8.02172058]
[1770444133841,6.79274004,2083.7,2082.6,7.78148058]
[1770444134839,6.79274004,2083.7,2082.7,7.78148058]
[1770444143054,0.00557917,2083.7,2082.7,7.78148058]
[1770444143346,0.00557917,2083.7,2082.7,2.86716951]
[1770444143652,0.00028005,2083.7,2082.9,7.78148058]
[1770444144846,0.00028005,2083.7,2083.0,7.78148058]
[1770444148255,0.00028005,2083.7,2083.1,7.78148058]
[1770444148444,6.74542549,2084.2,2083.1,7.78148058]
[1770444148947,6.74429471,2084.4,2083.1,7.78148058]
[1770444149357,6.74827228,2084.4,2083.1,7.78148058]
[1770444150156,6.74827228,2084.4,2083.2,7.78148058]
[1770444150357,6.74827228,2084.4,2083.2,7.78672171]
[1770444151653,0.00397757,2084.4,2083.2,7.78672171]
[1770444152155,6.74718793,2084.4,2083.2,7.78672171]
[1770444153457,6.74718793,2084.4,2083.3,7.78148058]
[1770444154756,6.74552342,2084.4,2083.3,7.78148058]
[1770444159361,6.61236322,2084.9,2083.8,7.90594396]
[1770444160358,6.61750297,2084.9,2083.8,7.90594396]
[1770444161564,0.00513975,2084.9,2084.1,7.90594396]
[1770444161966,6.55661094,2084.9,2084.1,7.90594396]
[1770444162263,6.55661094,2084.9,2083.6,2.86716951]
[1770444162455,6.55661094,2084.9,2083.9,7.90594396]
[1770444163961,7.94388839,2084.9,2083.3,7.90594396]
[1770444164161,7.38186439,2084.5,2083.2,7.91118509]
[1770444164366,6.07810778,2084.5,2083.2,7.91118509]
[1770444164563,6.31813778,2084.5,2083.2,7.91118509]
[1770444164763,6.31813778,2084.5,2083.2,0.00524113]
[1770444165063,6.07719762,2084.3,2083.2,0.00524113]
[1770444165273,6.06823084,2084.1,2083.2,0.00524113]
[1770444165466,6.30831084,2084.1,2082.6,7.90594396]
[1770444165664,6.06298971,2084.0,2082.6,7.90594396]
[1770444165866,6.06212133,2083.3,2082.1,8.24071588]
[1770444166461,6.06599709,2083.3,2082.1,7.91074085]
[1770444166657,6.06599709,2083.3,2082.1,0.00479689]
[1770444167365,6.06599709,2083.3,2082.1,7.91074085]
[1770444180771,0.00387576,2083.3,2082.3,7.90594396]
[1770444181671,6.23201995,2083.9,2082.5,7.90594396]
[1770444181868,6.23201995,2083.9,2082.7,7.90594396]
[1770444182680,6.23751708,2083.9,2082.7,8.14617396]
[1770444182980,6.23751708,2083.9,2082.9,7.90594396]
[1770444183378,0.00549713,2083.9,2082.9,7.90594396]
[1770444183574,6.23658593,2083.9,2082.9,7.90594396]
[1770444186172,6.23658593,2083.9,2082.3,8.0339333]
[1770444186874,6.47668593,2083.9,2082.3,8.0339333]
[1770444189372,5.94506127,2083.6,2082.3,9.3389436]
[1770444190378,5.9498948,2083.9,2083.1,7.5812746]
[1770444190775,7.2549051,2083.9,2082.7,7.5812746]
[1770444190977,5.94376064,2083.4,2082.7,7.5812746]
[1770444191377,5.93222121,2083.8,2082.7,7.5812746]
[1770444191574,5.93771834,2083.9,2083.0,7.5812746]
[1770444191986,5.93771834,2083.9,2083.2,7.5812746]
[1770444192173,0.00549713,2083.9,2083.2,7.5812746]
[1770444192379,5.93707034,2083.9,2083.2,7.5812746]
[1770444194777,5.93707034,2083.9,2082.8,7.5812746]
[1770444194975,5.93707034,2083.9,2082.2,2.86623268]
[1770444194976,4.89433163,2083.7,2082.2,7.5812746]
[1770444197900,5.13445163,2083.7,2082.2,7.5812746]
[1770444200397,4.89433163,2083.7,2082.3,7.5812746]
[1770444201094,4.49349526,2083.3,2082.1,7.58607149]
[1770444201399,4.49349526,2083.2,2082.1,7.58607149]
[1770444201997,4.49293425,2083.0,2082.1,0.00479689]
[1770444202897,4.49296594,2082.9,2081.4,7.5812746]
[1770444203690,4.49296594,2082.9,2081.4,7.58719026]
[1770444205202,3.03035408,2082.8,2081.4,7.58719026]
[1770444210404,3.41025135,2082.5,2081.4,7.58719026]
[1770444213711,3.32181738,2083.0,2081.4,7.58719026]
[1770444220211,3.32181738,2083.0,2081.4,7.82757026]
[1770444222018,3.32181738,2083.0,2081.7,8.04229602]
[1770444223314,7.07348108,2083.4,2081.7,8.04229602]
[1770444223519,3.16618789,2083.3,2081.7,8.04229602]
[1770444224817,3.16618789,2083.3,2081.8,8.04229602]
[1770444227910,3.16618789,2083.3,2081.8,11.1488587]
[1770444228116,3.16618789,2083.3,2082.0,8.04229602]
[1770444228319,7.07348108,2083.6,2082.0,8.04229602]
[1770444228524,3.14063806,2083.5,2082.1,8.04229602]
[1770444228821,3.14063806,2083.5,2082.3,8.04229602]
[1770444229421,0.00549713,2083.9,2082.3,8.04229602]
[1770444229623,3.16635178,2083.7,2082.4,8.04229602]
[1770444231720,3.24326032,2083.9,2082.4,8.28255602]
[1770444231921,3.24326032,2083.9,2082.6,8.04229602]
[1770444233828,0.00549713,2083.9,2082.6,8.04229602]
[1770444235127,3.22987137,2083.9,2082.6,8.04229602]
[1770444236430,3.20504894,2083.1,2081.8,4.29934903]
[1770444236634,0.33881626,2082.8,2081.7,8.18551386]
[1770444240932,0.55081243,2083.0,2081.7,8.18551386]
[1770444241734,0.45653148,2083.2,2081.7,8.18551386]
[1770444241924,0.45653148,2083.4,2081.9,8.12307398]
[1770444242237,0.45653148,2083.4,2082.0,0.24031]
[1770444242431,0.45719515,2083.8,2082.1,8.12274214]
[1770444244132,0.45719515,2083.8,2082.3,8.12337179]
[1770444244336,0.45719515,2083.8,2082.3,8.36365179]
[1770444245725,0.00549713,2083.9,2082.5,8.11108684]
[1770444245927,0.00549713,2083.9,2082.5,8.35133684]
[1770444247130,0.00549713,2083.9,2082.7,8.10061642]
[1770444247634,0.47655385,2083.7,2082.7,8.10061642]
[1770444248132,6.11782916,2083.7,2082.7,8.10061642]
[1770444248337,0.47220998,2083.6,2082.7,8.10061642]
[1770444250635,0.46348963,2083.5,2082.7,8.10061642]
[1770444251135,0.45876759,2083.8,2082.7,8.10061642]
[1770444251545,0.00549713,2083.9,2082.7,8.10061642]
[1770444252629,0.00549713,2083.9,2082.9,8.04807473]
[1770444252937,0.00549713,2083.9,2082.9,8.05257427]
[1770444253939,0.00070024,2083.9,2082.9,8.05257427]
[1770444254134,5.64127531,2084.4,2082.9,8.29278427]
[1770444254439,0.52125036,2084.4,2082.9,8.29278427]
[1770444254938,0.52125036,2084.4,2082.9,8.05257427]
[1770444255136,0.51674156,2084.2,2082.9,8.05257427]
[1770444256842,0.4926777,2084.4,2082.9,8.05257427]
[1770444257944,0.4926777,2084.4,2083.1,8.02846869]
[1770444259344,0.59978734,2084.3,2083.1,8.02846869]
[1770444260440,0.83983734,2084.3,2082.9,8.01553912]
[1770444260745,0.59600416,2084.0,2082.9,8.01553912]
[1770444262142,0.52518338,2083.8,2082.9,0.00449954]
[1770444262336,5.64127531,2083.8,2082.9,8.04676681]
[1770444262542,0.52518338,2083.7,2082.9,8.04676681]
[1770444265038,0.55678655,2083.9,2082.9,8.04676681]
[1770444266847,5.64127531,2084.1,2082.9,8.04676681]
[1770444266848,0.61359235,2084.1,2082.9,8.04676681]
[1770444268253,6.22986023,2084.3,2082.9,8.04676681]
[1770444268551,0.00474671,2084.4,2082.9,8.04676681]
[1770444268552,5.64602202,2084.4,2082.9,8.04676681]
[1770444268749,0.00474671,2084.4,2083.2,7.99858291]
[1770444269251,6.19815875,2084.9,2083.4,7.99858291]
[1770444269451,0.56163015,2084.8,2083.4,7.99858291]
[1770444270056,5.64127531,2084.9,2083.4,7.99858291]
[1770444270250,0.563977,2084.9,2083.4,7.99858291]
[1770444270555,0.55826132,2084.8,2083.4,7.99858291]
[1770444271455,5.64699099,2084.9,2083.4,7.99858291]
[1770444271754,0.00571568,2084.9,2083.6,7.96352593]
[1770444272755,0.64606492,2084.9,2083.6,7.96352593]
[1770444274952,0.63446303,2084.8,2083.6,7.96352593]
[1770444276957,0.6020149,2084.7,2083.6,7.96352593]
[1770444278145,0.63810249,2084.9,2083.6,7.96352593]
[1770444280751,0.00571568,2084.9,2083.6,7.96352593]
[1770444281255,0.61871013,2084.9,2083.6,7.96352593]
[1770444281657,0.00571568,2084.9,2083.6,7.96352593]
[1770444281957,0.00571568,2084.9,2083.6,8.20365593]
[1770444282157,0.00571568,2084.9,2083.8,7.96562434]
[1770444283555,0.00571568,2084.9,2083.8,8.28649591]
[1770444285758,0.00571568,2084.9,2083.8,8.52659591]
[1770444285959,0.59800377,2085.3,2083.8,8.52659591]
[1770444286861,0.00478712,2085.3,2084.0,7.95731428]
[1770444287257,0.00478712,2085.3,2084.2,7.95921482]
[1770444292563,0.00478712,2085.3,2084.4,7.8972108]
[1770444292766,0.00478712,2085.3,2084.4,7.90112937]
[1770444294363,0.70596289,2085.7,2084.4,7.90112937]
[1770444295065,0.70596289,2085.7,2084.4,8.14115937]
[1770444295263,0.71089417,2085.7,2084.4,8.14115937]
[1770444295966,0.66766349,2086.1,2084.7,7.91328969]
[1770444296964,0.67118339,2086.1,2084.7,7.91328969]
[1770444300766,0.65648291,2086.0,2084.7,7.91328969]
[1770444302269,5.64479521,2086.1,2084.7,7.91328969]
[1770444302270,0.0035199,2086.1,2084.7,7.91328969]
[1770444302477,0.0035199,2086.1,2085.1,7.90301061]
[1770444303575,0.66753499,2086.5,2085.1,7.90301061]
[1770444303778,8.4956712,2087.0,2085.3,7.90153926]
[1770444303779,0.66753499,2086.7,2085.3,7.90153926]
[1770444303975,0.66753499,2086.7,2085.3,8.14146926]
[1770444304177,5.64127531,2087.1,2085.5,7.90153926]
[1770444304377,0.6652305,2087.0,2085.5,7.90153926]
[1770444304779,0.67087986,2087.0,2085.5,7.90153926]
[1770444305079,0.67087986,2087.0,2085.5,8.14143926]
[1770444305973,0.67087986,2087.0,2085.5,7.90153926]
[1770444305974,0.00564936,2087.0,2085.5,7.90153926]
[1770444306276,0.64514319,2087.5,2086.0,7.89737526]
[1770444306969,0.650165,2087.9,2086.1,7.89737526]
[1770444307174,0.65366673,2087.9,2086.5,7.87955376]
[1770444308280,0.68713109,2087.9,2086.7,7.87943569]
[1770444308776,0.08339034,2088.5,2086.9,7.87943569]
[1770444308980,0.00702163,2088.4,2086.9,8.11917569]
[1770444309176,0.67408928,2088.4,2086.9,8.11917569]
[1770444309680,0.74997178,2088.6,2086.9,8.11917569]
[1770444309882,0.75517988,2088.6,2086.9,8.11917569]
[1770444310281,0.75517988,2088.6,2087.1,7.84138575]
[1770444310682,0.75306542,2088.6,2087.1,8.08110575]
[1770444312486,0.75306542,2088.6,2087.1,7.84138575]
[1770444312982,0.94142961,2088.5,2087.1,7.84138575]
[1770444314578,0.88635316,2088.3,2087.1,7.84138575]
[1770444314777,0.88416999,2087.9,2086.7,7.76763386]
[1770444315582,0.0052081,2088.6,2086.5,7.65002243]
[1770444315583,1.12834308,2087.8,2086.5,7.65002243]
[1770444315783,1.126185,2087.6,2086.5,7.65002243]
[1770444318500,1.12915529,2087.2,2086.2,7.65002243]
[1770444321593,1.25245244,2087.8,2086.2,7.65002243]
[1770444322494,1.25245244,2087.8,2086.2,7.88984243]
[1770444323498,1.46252395,2088.0,2086.2,7.88984243]
[1770444323900,0.23964,2087.9,2086.2,7.65002243]
[1770444324101,1.22092638,2087.8,2086.2,7.65002243]
[1770444324698,1.22807143,2087.3,2086.2,7.65002243]
[1770444326996,1.2169202,2087.5,2086.2,7.65002243]
[1770444327904,1.28179763,2087.8,2086.2,7.65002243]
[1770444328400,1.28190769,2087.9,2086.7,7.65002243]
[1770444332406,1.30366289,2087.8,2086.7,7.65002243]
[1770444333004,1.30188961,2087.7,2086.7,7.65002243]
[1770444336001,1.30534018,2087.9,2086.7,7.65002243]
[1770444336204,1.30534018,2088.1,2086.7,7.65002243]
[1770444336805,1.30354097,2088.2,2086.7,7.65002243]
[1770444339809,1.59996237,2088.4,2086.7,7.65002243]
[1770444340011,1.59996237,2088.4,2086.7,7.88979243]
[1770444340212,5.64127531,2088.5,2087.1,8.03294874]
[1770444340406,1.36567588,2088.6,2087.1,8.03294874]
[1770444341606,0.0052081,2088.6,2087.1,8.27266874]
[1770444341813,1.37720953,2088.6,2087.3,8.03294874]
[1770444342014,0.0052081,2088.6,2087.3,8.03294874]
[1770444342408,0.0052081,2088.6,2087.3,10.89171313]
[1770444342613,0.0052081,2088.6,2087.4,8.03294874]
[1770444343416,1.35034393,2088.6,2087.4,8.03294874]
[1770444343616,1.34513583,2088.5,2087.4,8.03294874]
[1770444343816,0.0052081,2088.6,2087.4,8.27263874]
[1770444344610,1.34888225,2088.6,2087.4,8.27263874]
[1770444344814,1.34888225,2088.6,2087.4,8.03294874]
[1770444346014,0.0052081,2088.6,2087.4,8.03294874]
[1770444346716,0.0052081,2088.6,2087.4,10.89171313]
[1770444346918,0.0052081,2088.6,2087.5,8.03294874]
[1770444347313,1.3937632,2088.6,2087.5,8.03294874]
[1770444349521,0.0052081,2088.6,2087.5,8.03294874]
[1770444351121,5.64127531,2089.2,2087.5,8.27262874]
[1770444351422,2.37091116,2089.2,2087.5,8.27262874]
[1770444352329,2.3745633,2089.2,2087.5,8.27262874]
[1770444352523,2.3745633,2089.2,2087.6,8.03294874]
[1770444352725,2.3745633,2089.2,2087.6,8.03861411]
[1770444354725,0.00365214,2089.2,2087.9,8.03294874]
[1770444354926,0.00702163,2089.0,2087.9,8.03294874]
[1770444355135,0.00365214,2089.2,2087.9,8.03294874]
[1770444355327,2.05100604,2089.2,2087.9,8.27257874]
[1770444356031,0.00365214,2089.2,2087.9,8.27257874]
[1770444357328,2.08227578,2089.2,2087.9,8.27257874]
[1770444359540,2.32176578,2089.2,2087.9,8.03294874]
[1770444362431,2.08227578,2089.2,2087.9,8.03294874]
[1770444362635,2.10455878,2088.6,2087.6,0.00566537]
[1770444362839,2.10455878,2088.6,2087.6,8.03861411]
[1770444363243,5.64127531,2089.0,2087.6,8.03861411]
[1770444363541,2.06588916,2088.9,2087.6,8.03861411]
[1770444363737,2.06588916,2088.8,2087.6,8.03861411]
[1770444364642,2.06466744,2088.7,2087.6,8.03861411]
[1770444364839,2.06344992,2088.6,2087.6,8.03861411]
[1770444367744,5.64127531,2088.8,2087.6,8.03861411]
[1770444367745,2.05404145,2088.7,2087.6,8.03861411]
[1770444370339,7.57576963,2088.9,2087.6,8.03861411]
[1770444371246,1.93338435,2089.1,2087.6,8.03861411]
[1770444371650,5.683237,2089.0,2087.6,8.03861411]
[1770444371842,7.60783219,2089.0,2087.6,8.03861411]
[1770444372644,5.683237,2088.9,2087.7,7.47172023]
[1770444372845,5.683237,2089.0,2087.8,7.47172023]
[1770444373046,5.683237,2089.1,2087.8,7.47172023]
[1770444373548,5.683237,2089.1,2087.9,7.47172023]
[1770444374546,0.00365214,2089.2,2088.1,7.47172023]
[1770444374749,0.00365214,2089.2,2088.2,7.47172023]
[1770444375946,1.94130609,2089.2,2088.2,7.47172023]
[1770444376541,0.00365214,2089.2,2088.2,7.47172023]
[1770444380051,0.00365214,2089.2,2088.4,7.47172023]
[1770444380254,5.683237,2089.7,2088.4,7.47172023]
[1770444380456,7.71358487,2089.8,2088.4,7.47172023]
[1770444380955,2.029359,2089.7,2088.4,7.47172023]
[1770444381352,2.03357922,2089.7,2088.4,7.47172023]
[1770444382052,0.00422022,2089.7,2088.4,7.47172023]
[1770444382254,0.00422022,2089.7,2088.4,10.33048462]
[1770444382454,2.03952589,2089.7,2088.5,7.71128023]
[1770444382654,2.03952589,2089.7,2088.6,7.47172023]
[1770444383950,0.00422022,2089.7,2088.6,7.71127023]
[1770444384256,2.03682163,2090.0,2088.6,7.71127023]
[1770444384457,5.922617,2090.1,2088.6,7.71127023]
[1770444384656,0.01124185,2090.0,2088.6,7.71127023]
[1770444385152,5.683237,2090.8,2089.4,7.47172023]
[1770444385359,2.01949893,2090.7,2089.4,7.47172023]
[1770444386149,2.02481369,2090.7,2089.4,7.47595898]
[1770444387161,2.26412369,2090.7,2089.4,7.47595898]
[1770444387458,2.03938117,2090.5,2089.4,7.47595898]
[1770444388557,7.68447879,2090.6,2089.4,7.47595898]
[1770444388761,2.03848922,2090.6,2089.4,7.47595898]
[1770444390365,0.00531476,2090.7,2089.4,7.47595898]
[1770444390760,2.0969998,2090.7,2089.4,7.47595898]
[1770444391358,2.3363098,2090.7,2089.4,7.47595898]
[1770444391553,2.09588009,2090.6,2089.4,7.47595898]
[1770444392562,0.00531476,2090.7,2089.4,7.47595898]
[1770444392764,2.09502144,2091.2,2089.6,7.47172023]
[1770444393067,2.33428144,2091.2,2089.6,7.47172023]
[1770444393760,2.33909899,2091.2,2089.6,7.47172023]
[1770444395859,0.00481755,2091.2,2089.6,7.47172023]
[1770444396563,2.11208235,2091.2,2089.8,8.05807471]
[1770444396765,0.00481755,2091.2,2089.8,8.05807471]
[1770444397763,2.12604389,2091.2,2089.8,8.05807471]
[1770444398063,0.00481755,2091.2,2089.8,8.05807471]
[1770444400363,2.13570564,2091.2,2089.8,8.05807471]
[1770444400759,2.14694749,2091.2,2089.8,8.05807471]
[1770444401560,2.13570564,2091.2,2089.8,8.05807471]
[1770444402863,0.00481755,2091.2,2089.8,8.29748471]
[1770444403467,2.18693311,2091.2,2089.8,8.29748471]
[1770444404070,0.00481755,2091.2,2089.8,8.29748471]
[1770444405669,2.21341443,2091.2,2089.8,8.29748471]
[1770444409370,0.00481755,2091.2,2089.8,8.29748471]
[1770444409765,2.8266639,2091.2,2089.8,8.29748471]
[1770444410570,0.00481755,2091.2,2089.8,8.29748471]
[1770444411166,0.00481755,2091.2,2090.0,8.05807471]
[1770444411363,0.00481755,2091.2,2090.0,8.29746471]
[1770444411571,0.00481755,2091.2,2090.1,8.05807471]
[1770444412073,0.00481755,2091.2,2090.1,10.9168391]
[1770444412274,0.00481755,2091.2,2090.2,8.05807471]
[1770444413373,0.00481755,2091.2,2090.4,8.05807471]
[1770444415063,2.55508288,2091.7,2090.4,8.05807471]
[1770444415270,0.01124185,2091.6,2090.4,8.05807471]
[1770444415469,2.55508288,2091.7,2090.5,8.05807471]
[1770444415872,2.4644777,2091.6,2090.5,8.05807471]
[1770444416074,2.46851679,2091.6,2090.5,8.05807471]
[1770444419071,2.70437118,2091.5,2090.5,8.05807471]
[1770444419277,5.65002866,2091.6,2090.5,8.05807471]
[1770444419479,0.00403909,2091.6,2090.5,8.05807471]
[1770444419776,2.75884573,2091.6,2090.5,8.05807471]
[1770444420273,0.00403909,2091.6,2090.5,8.05807471]
[1770444422280,2.726497,2091.6,2090.5,8.05807471]
[1770444422479,0.00403909,2091.6,2090.5,8.05807471]
[1770444422679,0.00403909,2091.6,2090.8,8.05807471]
[1770444423988,3.13892936,2092.5,2091.2,8.05807471]
[1770444424187,2.89981936,2092.5,2091.2,8.05807471]
[1770444424893,2.90567458,2092.5,2091.2,8.06388623]
[1770444425594,2.90567458,2092.5,2091.2,8.30313623]
[1770444425792,0.00585522,2092.5,2091.4,8.04016541]
[1770444426194,0.00585522,2092.5,2091.5,8.04016541]
[1770444426393,2.96547681,2093.0,2091.9,8.04016541]
[1770444426892,2.97076237,2093.3,2091.9,8.04016541]
[1770444427287,2.97486,2093.2,2091.9,8.04016541]
[1770444427490,2.98057156,2093.2,2091.9,8.04016541]
[1770444427693,0.00571156,2093.2,2091.9,8.04016541]
[1770444428096,0.00571156,2093.2,2091.9,8.27933541]
[1770444428592,0.00571156,2093.2,2092.1,8.27931541]
[1770444428793,2.97709891,2093.9,2092.3,7.85218413]
[1770444429093,2.97709891,2093.9,2092.3,8.09131413]
[1770444429295,2.82683632,2094.1,2092.7,7.85218413]
[1770444429689,0.01124185,2093.8,2092.7,7.85554745]
[1770444429886,0.00432367,2094.1,2092.7,7.85554745]
[1770444430092,2.83064238,2094.1,2092.7,7.85554745]
[1770444430588,3.06957238,2094.1,2092.7,7.85554745]
[1770444431390,2.8116937,2093.9,2092.7,7.85554745]
[1770444431793,3.0506437,2093.9,2092.7,7.85554745]
[1770444432288,3.28637199,2093.0,2091.9,7.85218413]
[1770444432494,3.28637199,2093.9,2092.1,7.85218413]
[1770444432695,3.28637199,2093.9,2092.2,0.23914]
[1770444432898,3.28637199,2093.9,2092.3,8.09131413]
[1770444433303,3.28637199,2093.9,2092.5,7.85218413]
[1770444433496,3.41580989,2094.1,2092.7,7.85218413]
[1770444437794,0.00432367,2094.1,2092.7,8.09126413]
[1770444438302,0.00432367,2094.1,2093.1,7.85218413]
[1770444438503,3.73311656,2094.1,2093.1,7.85218413]
[1770444438997,0.00432367,2094.1,2093.1,7.85218413]
[1770444439708,4.04069662,2094.1,2093.1,7.85218413]
[1770444440098,0.00432367,2094.1,2093.1,7.85218413]
[1770444441807,4.03765113,2094.5,2093.1,7.85218413]
[1770444442001,4.21978599,2094.7,2093.1,7.85218413]
[1770444442307,3.98092599,2094.7,2093.1,8.09122413]
[1770444442709,3.98102195,2094.5,2093.1,7.85218413]
[1770444442903,4.22533442,2094.5,2093.1,7.85218413]
[1770444443706,3.91709356,2094.3,2093.1,7.85218413]
[1770444443902,4.15600356,2094.3,2093.1,7.85218413]
[1770444444108,3.91821587,2094.0,2092.9,7.85218413]
[1770444444400,4.15727514,2093.7,2092.4,7.85218413]
[1770444444604,3.92954699,2093.1,2092.4,7.85218413]
[1770444445004,3.91830514,2093.1,2092.4,7.85218413]
[1770444445599,3.91830514,2093.1,2092.3,0.00385461]
[1770444446509,4.15734514,2093.1,2091.2,7.85218413]
[1770444446810,3.90836706,2092.9,2091.2,7.85218413]
[1770444447310,3.86851655,2092.7,2091.2,7.85218413]
[1770444447511,3.87345212,2092.7,2091.2,7.85834393]
[1770444448005,3.87345212,2092.7,2091.2,8.17268491]
[1770444448212,3.87345212,2092.7,2091.2,7.85834393]
[1770444449212,3.87345212,2092.7,2091.2,8.17645024]
[1770444449711,3.87345212,2092.7,2091.2,7.85834393]
[1770444452809,0.00493557,2092.7,2091.2,8.09759393]
[1770444453308,0.00493557,2092.7,2091.4,8.09141413]
[1770444453813,0.00493557,2092.7,2091.6,7.85218413]
[1770444454009,4.01301402,2093.3,2091.6,7.85218413]
[1770444454211,4.01301402,2093.3,2091.9,7.85218413]
[1770444455010,4.01649681,2093.3,2091.9,7.85218413]
[1770444455412,4.31830908,2093.0,2091.9,7.85218413]
[1770444456417,4.08427472,2092.8,2091.9,7.85218413]
[1770444457121,4.08427472,2092.8,2091.3,7.48590587]
[1770444457416,4.02836603,2092.7,2091.3,7.48590587]
[1770444458117,4.26836991,2092.6,2091.3,7.48590587]
[1770444459314,4.02926991,2092.6,2091.3,7.48590587]
[1770444459515,0.01124185,2092.4,2091.3,7.48590587]
[1770444459723,4.15304418,2092.8,2091.3,7.72514587]
[1770444461216,4.15483369,2093.1,2091.3,7.72514587]
[1770444462417,4.15483369,2093.1,2091.5,7.48590587]
[1770444462619,4.1937214,2093.0,2091.5,7.48590587]
[1770444462814,4.19455196,2092.8,2091.5,7.48590587]
[1770444468829,4.43363196,2092.8,2091.5,7.48590587]
[1770444469024,4.27619888,2092.7,2091.5,7.48590587]
[1770444469423,4.27846372,2092.6,2091.5,7.48590587]
[1770444472226,9.8867411,2092.6,2091.5,7.48590587]
[1770444472627,4.29469618,2092.5,2091.5,7.48590587]
[1770444473330,4.28595886,2092.4,2091.5,7.48590587]
[1770444473826,4.28669031,2092.3,2091.5,7.48590587]
[1770444474033,4.28669031,2092.1,2091.5,7.48590587]
[1770444475024,5.60827738,2092.2,2091.5,7.48590587]
[1770444475230,5.60827738,2092.3,2091.5,7.48590587]
[1770444475430,9.89576394,2092.5,2091.5,7.48590587]
[1770444475725,4.24780188,2092.4,2091.5,7.48590587]
[1770444475926,4.24851662,2092.3,2091.5,7.48590587]
[1770444477733,5.60827738,2092.4,2091.5,7.48590587]
[1770444477940,9.87157192,2092.4,2091.5,7.48590587]
[1770444478429,4.2633633,2092.3,2091.5,7.48590587]
[1770444480134,4.79257463,2092.2,2091.5,7.48590587]
[1770444480631,4.79266392,2092.0,2091.3,7.48590587]
[1770444481334,5.60827738,2092.2,2091.3,7.48590587]
[1770444481637,10.32328359,2092.3,2091.3,7.48590587]
[1770444481834,5.60827738,2092.2,2091.3,7.48590587]
[1770444482330,4.71575713,2092.3,2091.3,7.48590587]
[1770444482528,10.32403451,2092.3,2091.3,7.48590587]
[1770444482833,4.71575713,2092.2,2091.3,7.48590587]
[1770444483336,4.81766534,2092.1,2091.3,7.48590587]
[1770444483736,5.60827738,2092.4,2091.3,7.48590587]
[1770444483931,10.42594272,2092.5,2091.3,7.48590587]
[1770444484333,5.60827738,2092.4,2091.3,7.48590587]
[1770444484535,10.42594272,2092.5,2091.3,7.48590587]
[1770444485238,5.60827738,2092.4,2091.3,7.48590587]
[1770444486030,5.60827738,2092.5,2091.3,7.48590587]
[1770444486335,4.78521893,2092.3,2091.3,7.48590587]
[1770444487140,5.60827738,2092.4,2091.3,7.48590587]
[1770444487740,10.36589395,2092.1,2091.3,7.48590587]
[1770444487938,4.75823167,2092.0,2091.3,7.48590587]
[1770444489438,4.75823167,2092.0,2091.2,0.0061598]
[1770444489439,10.36650905,2092.0,2091.2,0.0061598]
[1770444489638,0.01124185,2091.4,2090.9,8.07466186]
[1770444489833,4.76780115,2091.5,2090.9,8.07466186]
[1770444490638,4.77238331,2091.5,2090.9,8.0797419]
[1770444490936,4.77238331,2091.5,2090.2,4.29934903]
[1770444490937,4.77238331,2091.5,2090.7,8.07466186]
[1770444491138,4.76905917,2091.4,2090.7,8.07466186]
[1770444491334,10.37733655,2091.4,2090.7,8.07466186]
[1770444491732,10.37733655,2091.4,2090.0,3.10219249]
[1770444491733,5.00533028,2091.3,2090.4,8.07466186]
[1770444491938,5.60827738,2091.4,2090.4,8.08009291]
[1770444492134,5.00533028,2091.4,2090.4,8.08009291]
[1770444492844,10.61360766,2091.4,2090.4,8.08009291]
[1770444493142,5.00533028,2091.4,2090.4,8.08009291]
[1770444494245,5.1283497,2091.2,2090.4,8.08009291]
[1770444500747,5.1283497,2091.2,2090.4,0.00543105]
[1770444500959,5.1283497,2091.2,2090.4,8.08009291]
[1770444502458,5.84750738,2091.4,2090.4,8.08009291]
[1770444502459,5.60827738,2091.4,2090.4,8.08009291]
[1770444502654,0.00458216,2091.5,2090.4,8.08009291]
[1770444504153,5.09041551,2092.0,2090.7,8.31397186]
[1770444504458,5.09507243,2091.8,2090.7,8.07466186]
[1770444504657,5.09507243,2091.6,2090.7,8.07466186]
[1770444505160,5.0997248,2091.6,2090.7,8.07466186]
[1770444506758,0.00465237,2091.6,2090.7,8.07466186]
[1770444507259,5.36773793,2091.6,2090.4,8.08009291]
[1770444507459,4.94091034,2091.3,2090.4,8.08009291]
[1770444507759,4.94091034,2091.2,2090.4,8.08009291]
[1770444508561,4.94145974,2091.1,2090.4,0.00543105]
[1770444508766,4.94145974,2091.0,2090.4,0.00543105]
[1770444509060,4.94145974,2091.0,2090.2,8.07466186]
[1770444509265,5.39748434,2091.2,2090.2,8.07466186]
[1770444509659,0.00465237,2091.6,2090.2,8.07466186]
[1770444509660,11.00576172,2091.4,2090.2,8.07466186]
[1770444509856,5.39748434,2091.4,2090.2,8.07872257]
[1770444510561,5.39800503,2091.3,2090.2,8.07872257]
[1770444510761,5.39844636,2091.2,2090.2,8.07872257]
[1770444513567,5.0091502,2091.1,2090.2,8.07872257]
[1770444514269,10.61742758,2091.1,2090.2,0.00406071]
[1770444514469,5.00963719,2091.0,2090.2,8.07872257]
[1770444515065,5.01471096,2091.6,2090.2,8.07872257]
[1770444515667,0.00465237,2091.6,2090.2,8.07872257]
[1770444516164,0.00465237,2091.6,2090.4,8.08232254]
[1770444516565,0.00465237,2091.6,2090.6,8.08232254]
[1770444517465,7.01027549,2091.4,2090.2,0.00406071]
[1770444517667,12.07296136,2091.1,2090.2,0.00406071]
[1770444517865,0.23923,2091.4,2090.2,0.00406071]
[1770444517866,12.07336391,2090.9,2090.2,0.00406071]
[1770444518173,5.06308842,2090.8,2089.7,8.08232254]
[1770444518670,7.01027549,2090.7,2089.7,8.08232254]
[1770444518872,5.98641519,2090.6,2089.7,8.08232254]
[1770444519172,5.98641519,2090.6,2089.7,8.08769075]
[1770444520871,5.98641519,2090.6,2089.7,0.00536821]
[1770444521271,5.98641519,2090.6,2089.7,8.08769075]
[1770444522373,5.98641519,2090.6,2089.3,8.08232254]
[1770444522374,7.47004354,2090.2,2089.3,8.08232254]
[1770444523473,7.47004354,2090.2,2089.3,8.08793527]
[1770444523669,7.11649062,2089.9,2088.4,2.85320413]
[1770444523874,7.0491418,2089.7,2088.5,8.08232254]
[1770444524074,7.11434125,2089.6,2088.5,8.08232254]
[1770444524775,0.00344929,2089.6,2088.5,8.08785692]
[1770444525476,7.23298869,2089.6,2088.5,8.08785692]
[1770444527275,0.00344929,2089.6,2088.5,8.08785692]
[1770444528875,7.79538728,2089.6,2088.5,8.08785692]
[1770444531175,7.79538728,2089.6,2087.3,2.85535392]
[1770444531371,7.44607148,2088.6,2087.4,8.08232254]
[1770444531570,7.44607148,2088.6,2086.3,0.23981]